[Event "Fall GM-C Norm Invitational 2022"]
[Site "Charlotte"]
[Date "2022.11.19"]
[Round "4"]
[White "Slade, Theodore"]
[Black "Ippolito, Dean"]
[Result "1-0"]
[ECO "A62"]
[WhiteElo "2028"]
[BlackElo "2368"]
[Annotator "TA"]
[PlyCount "92"]
[EventDate "2022.11.18"]
[EventType "tourn"]
[EventCountry "USA"]
[SourceTitle "playchess.com"]
[Source "ChessBase"]
[SourceQuality "1"]
[TimeControl "5400+30"]

{[%evp 21,92,0,4,0,0,0,0,0,0,0,0,0,0,0,8,0,0,0,36,-6,0,0,40,10,82,89,94,107,109,106,97,112,94,99,275,177,181,179,175,181,199,107,250,132,283,281,273,248,383,343,373,369,442,197,226,203,297,269,343,149,258,0,340,329,312,0,0,0,0,0,0,0,0]} 1. d4 {[%emt 0:00:02]} Nf6 {[%emt 0:00:08]} 2. c4 {[%emt 0:00:06]} e6 {[%emt 0:00:06]} 3. g3 {[%emt 0:00:10]} c5 {[%emt 0:00:14]} 4. d5 {[%emt 0:00:14]} exd5 {[%emt 0:00:11]} 5. cxd5 {[%emt 0:00:07]} d6 {[%emt 0:00:09]} 6. Nc3 {[%emt 0:00:16]} g6 {[%emt 0:00:08]} 7. Bg2 {[%emt 0:00:06]} Bg7 {[%emt 0:00:06]} 8. Nf3 {[%emt 0:00:08]} O-O {[%emt 0:00:08]} 9. O-O {[%emt 0:00:13]} Re8 {[%emt 0:00:58]} 10. Bf4 {[%emt 0:00:37]} Ne4 {[%emt 0:00:38]} 11. Nxe4 {[%emt 0:01:08]} Rxe4 {[%emt 0:00:07]} 12. Nd2 {[%emt 0:01:28] A62: Modern Benoni: Fianchetto Variation without early ...Nbd7.} Rxf4 {[%emt 0:00:17]} 13. gxf4 {[%emt 0:00:13]} Bxb2 {[%emt 0:00:04]} 14. Rb1 {[%emt 0:01:42]} Bg7 {[%emt 0:00:06]} 15. Nc4 {[%emt 0:07:34]} Bh6 {[%emt 0:01:06] A strong pair of Bishops. 15...b6 gains popularity.} 16. e3 {[%emt 0:03:26] [#]} Na6 $146 {[%emt 0:00:22]} ({Predecessor:} 16... Qe7 17. Qf3 Nd7 18. e4 Qf6 19. e5 Qxf4 20. Qxf4 Bxf4 21. Nxd6 Nxe5 22. Nxc8 Rxc8 23. Rxb7 {1-0 (38) Gundavaa,B (2489)-Shcherbakov,R (2527) Moscow 2019}) 17. Qf3 {[%emt 0:07:16][%cal Of4f5]} Nc7 {[%emt 0:12:27]} 18. a4 {[%emt 0:06:30]} b6 {[%emt 0:01:20]} 19. Rfd1 {[%emt 0:10:28]} Ba6 {[%emt 0:25:22]} 20. Rbc1 {[%emt 0:01:42][%cal Oc4e5]} f5 {[%emt 0:19:07]} 21. Qg3 {[%emt 0:10:40]} Qf8 {[%emt 0:05:25]} 22. h4 {[%emt 0:01:03][%cal Bh2h4,Bh4h5][%mdl 32]} (22. Ne5 $5) 22... Ne8 {[%emt 0:05:01]} (22... Qf6 $11 {keeps the balance.}) 23. h5 $16 {[%emt 0:01:01]} Kg7 {[%emt 0:00:06]} 24. Bf3 {[%emt 0:05:48] White has more active pieces.} Nf6 {[%emt 0:00:34]} 25. Kh2 {[%emt 0:01:56]} Rd8 {[%emt 0:02:36]} 26. Rg1 {[%emt 0:02:57][%cal Rh5g6]} Qf7 {[%emt 0:00:43]} 27. Rg2 {[%emt 0:01:36]} Bc8 $2 {[%emt 0:07:25]} (27... Bxc4 $16 {keeps fighting.} 28. Rxc4 Rg8) 28. Rcg1 {[%emt 0:07:49]} Ng4+ {[%emt 0:01:02]} 29. Bxg4 {[%emt 0:00:39]} fxg4 {[%emt 0:00:02] [#]} 30. Qh4 $36 {[%emt 0:01:16][%mdl 2048] Inhibits g5. Black is under strong pressure.} Qf8 {[%emt 0:14:17]} 31. Kh1 {[%emt 0:12:36]} ({White should play} 31. hxg6 $18 hxg6 32. Kg3 (32. Rxg4 Bxg4 33. Qxg4 Qf6 $16)) 31... Bf5 {[%emt 0:04:53]} (31... Qf6 $16 32. Qxf6+ Kxf6) 32. Nd2 {[%emt 0:01:34]} ({Better is} 32. hxg6 $18 Qf6 33. Qxf6+ Kxf6 34. gxh7) 32... c4 $2 {[%emt 0:00:49]} (32... Qf6 $16 {was necessary.} 33. Qxf6+ Kxf6) 33. Nxc4 {[%emt 0:06:12]} Rc8 {[%emt 0:00:02] [#]} 34. Nd2 {[%emt 0:01:21] Strongly threatening hxg6.} Rc2 {[%emt 0:00:02]} (34... Qf6 $142 35. Rxg4 Rc2) 35. f3 $18 {[%emt 0:01:16]} gxf3 {[%emt 0:00:08]} 36. Nxf3 {[%emt 0:00:13]} Rxg2 {[%emt 0:01:43]} 37. Rxg2 {[%emt 0:00:11]} (37. Kxg2 $142 Qf6 38. Qxf6+ Kxf6 39. hxg6) 37... Be4 {[%emt 0:00:01]} 38. Qg4 {[%emt 0:03:46]} Qf7 {[%emt 0:00:03]} (38... Bf5 {was called for.} 39. Qg3 Be4) 39. Kh2 {[%emt 0:00:27]} ({Resist} 39. hxg6 $6 hxg6 40. Kg1 Qxd5 $18) 39... Qxd5 {[%emt 0:00:06]} 40. Rg3 {[%emt 0:01:53]} (40. Kg3 $18 {is more deadly.}) 40... Qa2+ {[%emt 0:00:57]} (40... Kf7 $16 41. Qd7+ Kf6 42. hxg6 (42. Qxh7 Qxh5+ 43. Kg2 Bg7 $16) 42... hxg6) 41. Rg2 {[%emt 0:00:26] Chess con chili.} Qd5 {[%emt 0:01:14] [#]} (41... Qxa4 $2 42. f5 Qe8 43. hxg6 hxg6 44. Qh5 Bxf5 45. Qxf5 $18) 42. hxg6 $1 {[%emt 0:01:30]} hxg6 {[%emt 0:00:44]} 43. Rd2 {[%emt 0:00:08] Inhibits Qd3.} ({White should try} 43. Kg3 $18) 43... Bxf3 $11 {[%emt 0:00:10] The position is equal.} 44. Qd7+ $1 {[%emt 0:01:19]} Qf7 {[%emt 0:00:03]} 45. Rxd6 {[%emt 0:00:28]} Qxd7 {[%emt 0:01:02]} 46. Rxd7+ {[%emt 0:00:05]} Kf6 {[%emt 0:01:18][%mdl 32768] Weighted Error Value: White=0.61/Black=0.41. Sensor Board Error (Ke4/e5)?} 1-0

[Event "Fall GM-C Norm Invitational 2022"]
[Site "Charlotte"]
[Date "2022.11.20"]
[Round "5"]
[White "Wang, Tianqi"]
[Black "Georgiev, Vladimir"]
[Result "1/2-1/2"]
[ECO "C64"]
[WhiteElo "2428"]
[BlackElo "2406"]
[Annotator "TA"]
[PlyCount "47"]
[EventDate "2022.11.18"]
[EventType "tourn"]
[EventCountry "USA"]
[SourceTitle "playchess.com"]
[Source "ChessBase"]
[SourceQuality "1"]
[TimeControl "5400+30"]

{[%evp 9,47,33,39,25,24,25,24,19,30,24,33,25,31,0,-10,0,0,-21,0,-40,-37,-25,-39,-33,-38,-40,0,-12,0,0,20,0,0,0,-5,0,0,0,0,0]} 1. e4 {[%emt 0:05:28][%cal Be2e4,Be4e5][%mdl 32]} e5 {[%emt 0:00:06]} 2. Nf3 {[%emt 0:00:06]} Nc6 {[%emt 0:00:05]} 3. Bb5 {[%emt 0:00:20]} Bc5 {[%emt 0:00:09]} 4. c3 {[%emt 0:00:15]} Nf6 {[%emt 0:00:08]} 5. d4 {[%emt 0:00:55]} exd4 {[%emt 0:00:08]} 6. e5 {[%emt 0:00:05] C64: Ruy Lopez: Classical Defence (3...Bc5) except 4 0-0 Nf6.} Nd5 {[%emt 0:01:17]} 7. cxd4 {[%emt 0:02:57]} Bb4+ {[%emt 0:00:28]} 8. Nbd2 {[%emt 0:00:06] White has an edge.} O-O {[%emt 0:04:41]} 9. O-O {[%emt 0:06:43]} d6 {[%emt 0:01:48] [#]} 10. Nb3 $146 {[%emt 0:00:20] [#] And now a3 would win.} ({Predecessor:} 10. Nc4 dxe5 11. dxe5 Nce7 12. a3 Bc5 13. Ba4 a6 14. Bc2 b5 15. Ncd2 Bg4 16. Bxh7+ Kxh7 {0-1 (48) Balakhontsev,E (1972)-Garifullin,I Ufa 2008}) 10... dxe5 {[%emt 0:01:36]} 11. Nxe5 {[%emt 0:05:20]} Nce7 {[%emt 0:03:45]} 12. a3 {[%emt 0:06:01]} Bd6 {[%emt 0:00:25]} 13. Nc5 {[%emt 0:01:43]} Ng6 {[%emt 0:03:02]} 14. Ncd7 {[%emt 0:15:13]} Bxd7 {[%emt 0:05:27]} 15. Nxd7 {[%emt 0:00:15]} Re8 {[%emt 0:00:13] [#] ...c6 is the strong threat.} ({Don't play} 15... Qh4 16. g3 Qh3 17. Qf3 $16 (17. Nxf8 $2 {is a self mate.} Nh4)) 16. Nc5 {[%emt 0:00:32]} c6 {[%emt 0:01:50]} (16... Qh4 $2 17. g3 Qf6 18. Bxe8 (18. Nxb7 Reb8 $16) 18... Rxe8 19. Nxb7 $18) 17. Bc4 {[%emt 0:07:26]} Qb6 {[%emt 0:03:48]} 18. b4 {[%emt 0:02:17] The position is equal.} Qc7 {[%emt 0:10:20]} 19. g3 {[%emt 0:11:53]} a5 {[%emt 0:02:30]} 20. Bd2 {[%emt 0:04:19]} b6 {[%emt 0:01:40]} 21. Nd3 {[%emt 0:00:38]} Re4 {[%emt 0:00:40]} 22. Rc1 {[%emt 0:19:45] Threatens to win with Bxd5.} Rxd4 {[%emt 0:02:18] White must now prevent ...axb4.} 23. Be3 {[%emt 0:00:39]} Rxc4 {[%emt 0:01:55]} 24. Rxc4 {Weighted Error Value: White=0.07 (flawless) /Black=0.06 (flawless)} 1/2-1/2

[Event "Fall GM-C Norm Invitational 2022"]
[Site "Charlotte"]
[Date "2022.11.20"]
[Round "5"]
[White "Sethuraman, Sandeep"]
[Black "Slade, Theodore"]
[Result "1-0"]
[ECO "D31"]
[WhiteElo "2371"]
[BlackElo "2028"]
[Annotator "TA"]
[PlyCount "75"]
[EventDate "2022.11.18"]
[EventType "tourn"]
[EventCountry "USA"]
[SourceTitle "playchess.com"]
[Source "ChessBase"]
[SourceQuality "1"]
[TimeControl "5400+30"]

{[%evp 9,75,18,15,0,18,0,0,0,36,24,50,0,37,0,0,0,15,24,22,20,33,43,118,105,211,208,213,223,211,213,210,200,198,63,192,186,182,164,212,201,207,201,197,163,165,150,168,159,197,196,211,216,198,95,77,0,200,192,303,290,765,756,1997,1879,1776,1247,935,925]} 1. d4 {[%emt 0:00:02]} d5 {[%emt 0:00:05]} 2. c4 {[%emt 0:00:05]} e6 {[%emt 0:00:08]} 3. Nc3 {[%emt 0:00:05][%cal Bb1c3,Bc3d5,Bd5b6][%mdl 32]} a6 {[%emt 0:00:08]} 4. cxd5 {[%emt 0:00:38]} exd5 {[%emt 0:00:07]} 5. Qb3 {[%emt 0:00:34]} c5 {[%emt 0:00:10]} 6. Nxd5 {[%emt 0:00:44] D31: Queen's Gambit Declined: Semi-Slav without ...Nf6 (+ Marshall Gambit and Noteboom) and Exchange Variation lines without ...Nf6.} Nc6 $1 {[%emt 0:00:17] [#]} 7. Bg5 $1 {[%emt 0:02:06]} Nge7 {[%emt 0:00:24]} (7... Qxg5 $2 8. Nc7+ Ke7 9. Nxa8 $18 (9. Nf3 Nxd4 10. Nxd4 cxd4 $14)) 8. Nb6 {[%emt 0:00:53] The position is equal.} c4 {[%emt 0:00:09]} 9. Nxc4 {[%emt 0:00:12]} b5 {[%emt 0:00:07] [#] And now ...Be6 would win.} 10. e4 $146 {[%emt 0:01:49][%cal Oa1d1]} ({Predecessor:} 10. Nd2 Nxd4 11. Qd3 Bf5 12. e4 Rc8 13. Kd1 Bg6 14. f3 f6 15. Be3 Nc2 16. Qxd8+ Kxd8 {1-0 (67) Tan,Z (2511)-Yildiz Kadioglu,B (2362) Krasnaya Polyana 2021}) 10... Qxd4 {[%emt 0:16:11]} ({But not} 10... bxc4 11. Bxc4 Qa5+ 12. Bd2 $16) (10... Nxd4 $5 11. Qc3 $8 f6 $11) 11. Nd2 {[%emt 0:00:21]} Be6 $1 {[%emt 0:00:49]} 12. Qc3 {[%emt 0:05:47]} Qxc3 {[%emt 0:10:18]} 13. bxc3 {[%emt 0:00:02]} Ng6 {[%emt 0:02:45]} 14. Be3 {[%emt 0:16:03]} Ba3 {[%emt 0:04:09]} 15. f4 {[%emt 0:01:27] f5 is the strong threat.} f5 {[%emt 0:07:43]} (15... Bb2 $14 16. Rb1 Bxc3) 16. g4 $1 $16 {[%emt 0:04:16][%cal Bg2g4,Bg4f5][%mdl 32]} Bb2 {[%emt 0:08:46]} (16... fxg4 $16 {was called for.} 17. f5 Nge5) 17. Rb1 $1 $18 {[%emt 0:05:29]} Bxc3 {[%emt 0:00:17] White must now prevent ...fxe4.} 18. gxf5 {[%emt 0:02:19]} ({Don't play} 18. Rc1 Bxd2+ 19. Bxd2 Nge7) 18... Bxa2 {[%emt 0:00:20]} 19. Rc1 {[%emt 0:00:14]} Bxd2+ {[%emt 0:00:30]} 20. Bxd2 {[%emt 0:00:32]} (20. Kxd2 $6 Nge7 $16) 20... Nge7 {[%emt 0:00:17]} 21. Ra1 {[%emt 0:01:30]} ({Better is} 21. Nf3 $18) 21... Bc4 {[%emt 0:01:49]} (21... Bb3 $1 $14) 22. Bxc4 $1 {[%emt 0:00:14]} bxc4 {[%emt 0:00:12]} 23. Bc3 {[%emt 0:04:02]} O-O {[%emt 0:02:25]} (23... Nc8 $142) 24. Ne2 {[%emt 0:03:28]} Nc8 {[%emt 0:09:51]} 25. Rg1 $1 {[%emt 0:05:13]} Rf7 {[%emt 0:00:49]} 26. Kf2 {[%emt 0:03:51]} Nd6 {[%emt 0:02:00]} 27. Kf3 {[%emt 0:01:04]} Nb5 {[%emt 0:09:58]} 28. Ra4 $1 {[%emt 0:03:03]} Nxc3 {[%emt 0:00:17]} 29. Nxc3 {[%emt 0:01:37]} Nd4+ {[%emt 0:00:31]} 30. Ke3 {[%emt 0:00:20]} Nc2+ {[%emt 0:00:30] [#]} 31. Kd2 {[%emt 0:00:12]} (31. Kf2 $1 $18 {and White stays clearly on top.}) 31... Nd4 $16 {[%emt 0:00:07] aiming for ...Nf3+.} 32. Ke3 {[%emt 0:00:01] Prevents Nf3.} (32. Rd1 $16) 32... Nc2+ $1 $18 {[%emt 0:00:25] [#]} 33. Kf2 $1 {[%emt 0:01:33]} Rd8 {[%emt 0:06:45]} (33... Rb8 $142 34. Rxc4 Rb4 35. Rc8+ Rf8) 34. Nd5 {[%emt 0:06:11]} ({Resist} 34. Rxc4 $6 Rd2+ 35. Kf3 Rd3+ 36. Ke2 Rd4 37. Rxd4 Nxd4+ 38. Ke3 Nb5 $18) 34... c3 $2 {[%emt 0:03:58]} (34... a5 35. Rxc4 Nb4) 35. Rc1 {[%emt 0:02:06] White is clearly winning.} Rxf5 {[%emt 0:05:42]} 36. exf5 {[%emt 0:00:18]} Rxd5 {[%emt 0:00:08]} 37. Rxc2 {[%emt 0:00:05]} Rxf5 {[%emt 0:00:44]} 38. Rxc3 {[%emt 0:00:02] Weighted Error Value: White=0.14 (very precise) /Black=0.27 (precise)} 1-0

[Event "Fall GM-C Norm Invitational 2022"]
[Site "Charlotte"]
[Date "2022.11.20"]
[Round "5"]
[White "Ippolito, Dean"]
[Black "Rodriguez Garcia, Victor"]
[Result "1-0"]
[ECO "E68"]
[WhiteElo "2368"]
[BlackElo "2350"]
[Annotator "TA"]
[PlyCount "199"]
[EventDate "2022.11.18"]
[EventType "tourn"]
[EventCountry "USA"]
[SourceTitle "playchess.com"]
[Source "ChessBase"]
[SourceQuality "1"]
[TimeControl "5400+30"]

{[%evp 24,199,45,32,60,41,46,40,40,51,78,79,88,56,90,89,110,98,120,94,99,114,144,138,145,142,184,184,201,216,204,106,83,95,189,189,230,240,320,317,325,321,316,288,274,232,219,216,353,340,341,345,401,389,347,313,310,307,316,312,304,304,317,295,301,307,718,725,718,1043,629,981,972,764,718,337,337,337,29942,29944,29942,29944,29944,29946,29943,29944,29956,29957,29957,29954,29960,29961,29960,29961,29963,29962,29962,29964,29964,29963,29962,29956,29956,29955,29958,29955,29956,29956,29956,29957,29959,29961,29961,29960,29962,29959,29964,29963,29965,29962,29961,29960,29958,29953,29953,29952,29951,29953,29951,29952,29954,0,29949,0,29957,0,29955,29957,29956,29953,29958,29960,29960,29961,29962,29964,29965,29966,29964,29967,29967,29963,29963,29963,29971,29971,29973,29971,29971,29972,29972,29973,29973,29968,29966,29967,29968,29969,29967,29971,29970,29972,29972,29973,29973,29974,29971,4145]} 1. d4 {[%emt 0:00:03]} Nf6 {[%emt 0:00:07]} 2. c4 {[%emt 0:00:06]} g6 {[%emt 0:00:07]} 3. Nf3 {[%emt 0:00:04]} Bg7 {[%emt 0:00:11]} 4. g3 {[%emt 0:00:04]} O-O {[%emt 0:00:10]} 5. Bg2 {[%emt 0:00:04]} d6 {[%emt 0:00:09]} 6. Nc3 {[%emt 0:00:15]} Nbd7 {[%emt 0:01:37]} 7. O-O {[%emt 0:00:17]} e5 {[%emt 0:00:08]} 8. e4 {[%emt 0:00:17]} exd4 {[%emt 0:02:37]} 9. Nxd4 {[%emt 0:00:05]} Nc5 {[%emt 0:04:29]} 10. h3 {[%emt 0:01:01]} Re8 {[%emt 0:00:52]} 11. Re1 {[%emt 0:00:18]} Bd7 {[%emt 0:06:26]} 12. Rb1 {[%emt 0:00:24]} Qc8 {[%emt 0:07:11]} 13. Kh2 {[%emt 0:01:47]} h5 {[%emt 0:00:54] E68: King's Indian: Fianchetto: 6...Nbd7 7 0-0 e5 8 e4.} 14. b4 {[%emt 0:14:17]} Ne6 {[%emt 0:01:06] [#] Threatens to win with ...Nxd4.} 15. Be3 $146 {[%emt 0:01:42]} ({Predecessor:} 15. Nf3 Nh7 16. Qd3 a6 17. Nd5 b5 18. Bb2 Bxb2 19. Rxb2 Rb8 20. e5 Bc6 21. Nh4 bxc4 22. Qxc4 {1-0 (68) Ikeda,J (2427)-Bach,M (2200) Helsingor 2017}) 15... Nxd4 {[%emt 0:21:33] White is slightly better.} 16. Bxd4 {[%emt 0:00:22]} Qd8 {[%emt 0:06:06][%cal Oh5h4]} 17. f4 {[%emt 0:06:46]} Be6 {[%emt 0:12:01]} 18. Nd5 {[%emt 0:13:08][%cal Bc3d5,Bd5e3,Be3f1][%mdl 32]} c6 {[%emt 0:03:45] [#]} 19. Ne3 {[%emt 0:00:42] White is much more active.} Bc8 {[%emt 0:10:22]} 20. Qd3 {[%emt 0:08:43]} Qd7 {[%emt 0:01:46][%cal Of6e4]} 21. Nf1 {[%emt 0:05:53]} Qe7 {[%emt 0:08:23]} 22. Rbd1 {[%emt 0:10:39]} Rd8 {[%emt 0:02:21]} 23. Ne3 {[%emt 0:03:41]} Bd7 {[%emt 0:02:08]} 24. a3 {[%emt 0:08:09]} Be8 {[%emt 0:01:13]} 25. Qc3 {[%emt 0:04:52][%cal Oe3f5]} c5 {[%emt 0:03:02]} 26. bxc5 {[%emt 0:01:39]} dxc5 {[%emt 0:00:01]} 27. Be5 {[%emt 0:00:13]} (27. Bxf6 $18 Qxf6 28. e5) 27... Rxd1 $16 {[%emt 0:01:02]} 28. Rxd1 {[%emt 0:00:04][%cal Be1d1,Bd1b1,Bb1b7][%mdl 32]} Ba4 {[%emt 0:01:56] [#]} (28... Rd8 $16 {might work better.}) 29. Rb1 $1 $18 {[%emt 0:04:49]} Rd8 {[%emt 0:00:51]} 30. Bxf6 {[%emt 0:03:19]} Bxf6 {[%emt 0:00:47]} 31. e5 {[%emt 0:00:03]} Bg7 {[%emt 0:00:33]} 32. Rxb7 {[%emt 0:02:27]} Rd7 {[%emt 0:00:12]} 33. Nd5 {[%emt 0:01:12]} Qd8 {[%emt 0:00:13]} 34. Qb2 {[%emt 0:05:50] Hoping for Rb8.} Rxb7 {[%emt 0:00:09]} 35. Qxb7 {[%emt 0:00:04]} h4 {[%emt 0:00:09]} (35... Qd7 $142) 36. Qxa7 {[%emt 0:00:40]} hxg3+ {[%emt 0:00:15]} 37. Kxg3 {[%emt 0:00:02]} Bc2 {[%emt 0:01:32]} 38. Qxc5 {[%emt 0:00:36]} g5 {[%emt 0:00:09] [#]} 39. Qc8 $3 {[%emt 0:03:44][%mdl 512]} gxf4+ {[%emt 0:00:49]} 40. Kxf4 {[%emt 0:00:02]} Bh6+ {[%emt 0:00:20]} (40... Qxc8 $2 41. Ne7+ Kf8 42. Nxc8 $18) 41. Kg3 {[%emt 0:00:06] Threatening mate with Nf6+.} Qxc8 {[%emt 0:00:23]} (41... Bf4+ $2 42. Kxf4 Qxc8 43. Ne7+ Kf8 44. Nxc8 $18) 42. Ne7+ {[%emt 0:00:02]} Kf8 {[%emt 0:00:05]} 43. Nxc8 {[%emt 0:00:02][%mdl 4096] Endgame KBB-KBN} Bc1 {[%emt 0:00:33]} 44. c5 {[%emt 0:00:27]} Bxa3 $2 {[%emt 0:00:19]} (44... Bb2 45. Kf4 Bc1+ 46. Kf3 Bb2) 45. c6 {[%emt 0:00:03] Black must now prevent c7.} Bb2 {[%emt 0:00:55]} 46. Kf4 {[%emt 0:00:06]} Bc1+ {[%emt 0:00:03]} 47. Kg4 {[%emt 0:00:12]} (47. Kf3 $142) 47... Bb3 {[%emt 0:01:49]} 48. Nd6 {[%emt 0:02:19] And now Be4 would win.} Be6+ {[%emt 0:00:38]} 49. Kf3 {[%emt 0:02:04]} (49. Kh5 $142 Bf4 50. c7) 49... Bb2 {[%emt 0:00:46]} 50. Ke4 {[%emt 0:00:23]} f6 $2 {[%emt 0:00:52]} (50... Ke7 $18 51. c7 Bxe5) 51. exf6 {[%emt 0:00:26]} Bxf6 {[%emt 0:00:02]} 52. c7 {[%emt 0:00:08]} Ke7 {[%emt 0:01:07]} 53. c8=Q {[%emt 0:00:05]} Bxc8 {[%emt 0:00:03]} 54. Nxc8+ {[%emt 0:00:02]} Kf7 {[%emt 0:00:34]} 55. Kf5 {[%emt 0:00:06]} Kg7 {[%emt 0:00:26]} 56. Nd6 {[%emt 0:00:04]} Bh4 {[%emt 0:00:40]} 57. Kg4 {[%emt 0:00:23]} Be1 {[%emt 0:00:21]} 58. h4 {[%emt 0:00:08]} Bd2 {[%emt 0:00:49]} 59. Be4 {[%emt 0:00:10]} Bc1 {[%emt 0:00:29]} 60. Nf5+ {[%emt 0:00:16]} Kh7 {[%emt 0:00:12]} 61. Kh5 {[%emt 0:00:21]} Bd2 {[%emt 0:00:09]} 62. Nd6+ {[%emt 0:00:54]} Kg7 {[%emt 0:00:06]} 63. Ne8+ {[%emt 0:00:10]} Kf8 {[%emt 0:00:25]} 64. Bg6 {[%emt 0:01:22]} Bc1 {[%emt 0:00:24]} 65. Kg4 {[%emt 0:00:51]} Bd2 {[%emt 0:00:13]} 66. Kf5 {[%emt 0:00:12]} Bc1 {[%emt 0:00:08]} 67. Ke6 {[%emt 0:00:34]} Kg8 {[%emt 0:01:03]} 68. Bd3 {[%emt 0:01:15]} Kf8 {[%emt 0:00:14]} 69. Bb5 {[%emt 0:00:22]} Kg8 {[%emt 0:00:15]} 70. Kf6 {[%emt 0:00:13]} Kh7 {[%emt 0:00:18]} 71. Bd3+ {[%emt 0:00:50]} Kh6 {[%emt 0:03:11]} 72. Bg6 {[%emt 0:00:04]} Bb2+ {[%emt 0:00:13]} 73. Kf5 {[%emt 0:00:32]} Bc3 {[%emt 0:00:31]} 74. Nd6 {[%emt 0:00:16]} Kg7 {[%emt 0:00:22]} 75. Kg5 {[%emt 0:01:12]} Bd2+ {[%emt 0:00:41]} 76. Kh5 {[%emt 0:00:05]} Bc1 {[%emt 0:00:09]} 77. Ne8+ {[%emt 0:01:32]} Kf8 {[%emt 0:00:28]} 78. Kg4 $2 {[%emt 0:00:04]} (78. Nf6 Ba3 79. Nd5 Bc1 80. Kg4 Kg8 81. Ne7+ Kg7 82. h5 Kf6 83. Nf5) 78... Kg8 $2 {[%emt 0:00:14][%mdl 8192]} (78... Bd2 $11 79. Kf5 Ke7) 79. Kf5 $2 {[%emt 0:00:21]} (79. h5 {mates} Kf8 80. Nd6 Kg7 81. Nf5+ Kf6 82. Be8 Bg5 83. h6 Bxh6 84. Nxh6) 79... Bb2 $2 {[%emt 0:00:22][%mdl 8192]} (79... Kf8 $11 80. Ke6 Bf4) 80. h5 {[%emt 0:00:07] White mates.} Bc1 {[%emt 0:00:06]} 81. Kf6 {[%emt 0:00:30]} Bb2+ {[%emt 0:00:02]} 82. Ke6 {[%emt 0:00:06]} Bc1 {[%emt 0:00:02]} 83. Nd6 {[%emt 0:00:06]} Bd2 {[%emt 0:00:40]} 84. Nf5 {[%emt 0:00:17]} Bc1 {[%emt 0:00:12]} 85. Kf6 {[%emt 0:00:13]} Bb2+ {[%emt 0:00:07]} 86. Kg5 {[%emt 0:00:04]} Bc1+ {[%emt 0:00:08]} 87. Kg4 {[%emt 0:00:06]} Bb2 {[%emt 0:03:31]} 88. h6 {[%emt 0:00:06]} Kh8 {[%emt 0:00:34]} 89. h7 {[%emt 0:02:26]} Bc3 {[%emt 0:00:51]} 90. Kh5 {[%emt 0:00:16]} Bb2 {[%emt 0:00:09]} 91. Nd6 {[%emt 0:00:25]} Kg7 {[%emt 0:00:10]} 92. Nf7 {[%emt 0:00:08][%csl Gf7][%cal Rh7h8]} Kf8 {[%emt 0:00:09]} 93. h8=Q+ {[%emt 0:00:07]} Bxh8 {[%emt 0:00:04]} 94. Nxh8 {[%emt 0:00:01]} Ke7 {[%emt 0:00:17]} 95. Kg5 {[%emt 0:00:05]} Kd6 {[%emt 0:00:04]} 96. Kf5 {[%emt 0:00:08]} Kd5 {[%emt 0:00:05]} 97. Nf7 {[%emt 0:00:05]} Kd4 {[%emt 0:00:14]} 98. Ne5 {[%emt 0:00:08]} Kd5 99. Kf4 {[%emt 0:00:09]} Kd4 {[%emt 0:00:08]} 100. Be4 {[%emt 0:00:10] Weighted Error Value: White=0.19 (very precise) /Black=0.35} (100. Bf7 $142 Kc5 101. Ke4 Kb4 102. Kd4 Ka4 103. Nd3 Ka3 104. Bg8 Ka4 105. Kc5) 1-0